[Event "Titled Tuesday Blitz October 04 Late 2022"]
[White "Hristodoulou, Panagiotis"]
[Black "Leiva, Gianmarco"]
[WhiteFideId "4214340"]
[BlackFideId "3804399"]
[WhiteElo "2272"]
[BlackElo "2285"]
[Result "1/2-1/2"]
[Round "07"]
[TimeControl "180+1"]
[Date "2022.10.04"]
[WhiteClock "0:00:20"]
[BlackClock "0:00:07"]

1. e4 {[%clk 0:03:00]}  c5 {[%clk 0:02:58]} 2. Nf3 {[%clk 0:03:00]}  d6 {[%clk 0:02:59]} 3. d4 {[%clk 0:02:57]}  cxd4 {[%clk 0:02:59]} 4. Nxd4 {[%clk 0:02:58]}  Nf6 {[%clk 0:03:00]} 5. Nc3 {[%clk 0:02:53]}  a6 {[%clk 0:03:00]} 6. Be2 {[%clk 0:02:44]}  e5 {[%clk 0:02:59]} 7. Nf3 {[%clk 0:02:43]}  Be7 {[%clk 0:02:59]} 8. Bg5 {[%clk 0:02:39]}  Be6 {[%clk 0:02:56]} 9. Bxf6 {[%clk 0:02:38]}  Bxf6 {[%clk 0:02:56]} 10. O-O {[%clk 0:02:39]}  Be7 {[%clk 0:02:54]} 11. Nd5 {[%clk 0:02:38]}  O-O {[%clk 0:02:52]} 12. Bc4 {[%clk 0:02:37]}  Nd7 {[%clk 0:02:50]} 13. Re1 {[%clk 0:02:32]}  Nb6 {[%clk 0:02:44]} 14. Bb3 {[%clk 0:02:31]}  Rc8 {[%clk 0:02:37]} 15. Nxb6 {[%clk 0:02:25]}  Qxb6 {[%clk 0:02:37]} 16. Qd2 {[%clk 0:02:26]}  Rfd8 {[%clk 0:02:22]} 17. Red1 {[%clk 0:02:18]}  Qc6 {[%clk 0:02:05]} 18. Re1 {[%clk 0:01:43]}  Qc5 {[%clk 0:01:12]} 19. c3 {[%clk 0:01:39]}  a5 {[%clk 0:00:39]} 20. Rad1 {[%clk 0:01:33]}  a4 {[%clk 0:00:36]} 21. Bd5 {[%clk 0:01:30]}  a3 {[%clk 0:00:35]} 22. bxa3 {[%clk 0:01:17]}  Qxc3 {[%clk 0:00:35]} 23. Bxb7 {[%clk 0:01:15]}  Qxd2 {[%clk 0:00:18]} 24. Rxd2 {[%clk 0:01:16]}  Rc3 {[%clk 0:00:18]} 25. a4 {[%clk 0:01:14]}  Rb8 {[%clk 0:00:18]} 26. Bd5 {[%clk 0:01:12]}  Ra3 {[%clk 0:00:14]} 27. Bxe6 {[%clk 0:01:07]}  fxe6 {[%clk 0:00:14]} 28. Rc1 {[%clk 0:01:03]}  Rxa4 {[%clk 0:00:14]} 29. Re2 {[%clk 0:01:00]}  Rbb4 {[%clk 0:00:13]} 30. Rce1 {[%clk 0:00:58]}  Ra3 {[%clk 0:00:11]} 31. h3 {[%clk 0:00:57]}  Rba4 {[%clk 0:00:07]} 32. Ra1 {[%clk 0:00:56]}  Bd8 {[%clk 0:00:07]} 33. Rc2 {[%clk 0:00:53]}  Be7 {[%clk 0:00:02]} 34. Rb1 {[%clk 0:00:50]}  Ra7 {[%clk 0:00:01]} 35. Rbb2 {[%clk 0:00:48]}  Kf7 {[%clk 0:00:01]} 36. Nd2 {[%clk 0:00:45]}  R3a4 {[%clk 0:00:01]} 37. f3 {[%clk 0:00:45]}  R4a6 {[%clk 0:00:01]} 38. Nc4 {[%clk 0:00:45]}  Ra4 {[%clk 0:00:01]} 39. Kh1 {[%clk 0:00:45]}  R4a6 {[%clk 0:00:01]} 40. Ne3 {[%clk 0:00:45]}  h5 {[%clk 0:00:02]} 41. Nc4 {[%clk 0:00:41]}  h4 {[%clk 0:00:02]} 42. Ne3 {[%clk 0:00:41]}  Bg5 {[%clk 0:00:02]} 43. Nc4 {[%clk 0:00:41]}  Bf4 {[%clk 0:00:02]} 44. Rd2 {[%clk 0:00:40]}  Ke7 {[%clk 0:00:02]} 45. Rdc2 {[%clk 0:00:39]}  Rc7 {[%clk 0:00:02]} 46. Kg1 {[%clk 0:00:38]}  Rac6 {[%clk 0:00:03]} 47. Na3 {[%clk 0:00:38]}  Be3+ {[%clk 0:00:03]} 48. Kf1 {[%clk 0:00:38]}  Bc1 {[%clk 0:00:03]} 49. Rxc6 {[%clk 0:00:37]}  Rxc6 {[%clk 0:00:04]} 50. Rc2 {[%clk 0:00:37]}  Ra6 {[%clk 0:00:03]} 51. Nc4 {[%clk 0:00:36]}  Bf4 {[%clk 0:00:03]} 52. Ke2 {[%clk 0:00:35]}  d5 {[%clk 0:00:04]} 53. Nb2 {[%clk 0:00:33]}  Ra3 {[%clk 0:00:02]} 54. Nd3 {[%clk 0:00:33]}  Bg3 {[%clk 0:00:02]} 55. Kd2 {[%clk 0:00:30]}  Kd6 {[%clk 0:00:01]} 56. Rb2 {[%clk 0:00:30]}  Ra4 {[%clk 0:00:02]} 57. Ke3 {[%clk 0:00:29]}  Bf4+ {[%clk 0:00:02]} 58. Nxf4 {[%clk 0:00:28]}  d4+ {[%clk 0:00:02]} 59. Kd3 {[%clk 0:00:27]}  exf4 {[%clk 0:00:03]} 60. Rb6+ {[%clk 0:00:28]}  Ke5 {[%clk 0:00:03]} 61. Rb2 {[%clk 0:00:24]}  Ra3+ {[%clk 0:00:03]} 62. Kd2 {[%clk 0:00:24]}  Kd6 {[%clk 0:00:03]} 63. Ke2 {[%clk 0:00:23]}  e5 {[%clk 0:00:03]} 64. Kd2 {[%clk 0:00:22]}  Kc5 {[%clk 0:00:04]} 65. Rc2+ {[%clk 0:00:22]}  Kb4 {[%clk 0:00:04]} 66. Rb2+ {[%clk 0:00:22]}  Kc4 {[%clk 0:00:04]} 67. Rc2+ {[%clk 0:00:22]}  Kb5 {[%clk 0:00:05]} 68. Rb2+ {[%clk 0:00:22]}  Kc6 {[%clk 0:00:06]} 69. Ke1 {[%clk 0:00:21]}  Kc5 {[%clk 0:00:05]} 70. Kd2 {[%clk 0:00:21]}  d3 {[%clk 0:00:06]} 71. Rb3 {[%clk 0:00:20]}  Rxb3 {[%clk 0:00:04]} 72. axb3 {[%clk 0:00:20]}  Kb4 {[%clk 0:00:05]} 73. Kxd3 {[%clk 0:00:20]}  Kxb3 {[%clk 0:00:05]} 74. Ke2 {[%clk 0:00:20]}  Kc2 {[%clk 0:00:06]} 75. Kf2 {[%clk 0:00:20]}  Kd2 {[%clk 0:00:06]} 76. Kg1 {[%clk 0:00:21]}  Ke1 {[%clk 0:00:07]} 77. Kh2 {[%clk 0:00:21]}  Kf2 {[%clk 0:00:07]} 78. Kh1 {[%clk 0:00:22]}  Kf1 {[%clk 0:00:06]} 79. Kh2 {[%clk 0:00:22]}  Ke2 {[%clk 0:00:06]} 80. Kg1 {[%clk 0:00:22]}  Ke3 {[%clk 0:00:07]} 81. Kf1 {[%clk 0:00:21]}  Kd3 {[%clk 0:00:07]} 82. Ke1 {[%clk 0:00:21]}  Kd4 {[%clk 0:00:08]} 83. Kd2 {[%clk 0:00:21]}  Kc4 {[%clk 0:00:08]} 84. Kc2 {[%clk 0:00:21]}  Kb4 {[%clk 0:00:09]} 85. Kd3 {[%clk 0:00:20]}  Kb3 {[%clk 0:00:09]} 86. Kd2 {[%clk 0:00:20]}  Kb2 {[%clk 0:00:09]} 87. Kd3 {[%clk 0:00:20]}  Kb3 {[%clk 0:00:07]} 1/2-1/2


[Site "https://www.chess.com"]

[Event "Titled Tuesday Blitz October 04 Late 2022"]
[White "Kozak, Adam"]
[Black "Brodowski, Piotr"]
[WhiteFideId "753246"]
[BlackFideId "1124480"]
[WhiteElo "2459"]
[BlackElo "2361"]
[Result "0-1"]
[Round "07"]
[TimeControl "180+1"]
[Date "2022.10.04"]
[WhiteClock "0:00:43"]
[BlackClock "0:01:21"]

1. d4 {[%clk 0:02:59]}  d6 {[%clk 0:02:58]} 2. c4 {[%clk 0:03:00]}  e5 {[%clk 0:02:58]} 3. Nc3 {[%clk 0:03:00]}  exd4 {[%clk 0:02:57]} 4. Qxd4 {[%clk 0:03:01]}  Nc6 {[%clk 0:02:57]} 5. Qe3+ {[%clk 0:03:01]}  Be6 {[%clk 0:02:55]} 6. h4 {[%clk 0:03:01]}  g6 {[%clk 0:02:50]} 7. h5 {[%clk 0:03:01]}  Bg7 {[%clk 0:02:50]} 8. Nh3 {[%clk 0:02:59]}  Qd7 {[%clk 0:02:39]} 9. Ng5 {[%clk 0:02:59]}  O-O-O {[%clk 0:02:38]} 10. Nxe6 {[%clk 0:02:59]}  fxe6 {[%clk 0:02:38]} 11. g3 {[%clk 0:02:59]}  gxh5 {[%clk 0:02:32]} 12. Bd2 {[%clk 0:02:56]}  Bh6 {[%clk 0:02:24]} 13. Qd3 {[%clk 0:02:50]}  Nb4 {[%clk 0:02:21]} 14. Qe4 {[%clk 0:02:47]}  Nf6 {[%clk 0:02:13]} 15. Qf3 {[%clk 0:02:46]}  Bxd2+ {[%clk 0:02:11]} 16. Kxd2 {[%clk 0:02:46]}  d5 {[%clk 0:02:05]} 17. c5 {[%clk 0:02:14]}  Rhf8 {[%clk 0:01:58]} 18. Kc1 {[%clk 0:01:09]}  Ng4 {[%clk 0:01:56]} 19. Qg2 {[%clk 0:01:05]}  Rxf2 {[%clk 0:01:55]} 20. Qg1 {[%clk 0:01:03]}  Qf7 {[%clk 0:01:51]} 21. Bh3 {[%clk 0:01:01]}  Qg6 {[%clk 0:01:26]} 22. e4 {[%clk 0:00:44]}  Nd3+ {[%clk 0:01:22]} 23. Kd1 {[%clk 0:00:43]}  Ne3# {[%clk 0:01:21]} 0-1


[Site "https://www.chess.com"]

[Event "Titled Tuesday Blitz October 04 Late 2022"]
[White "Lewtak, Damian"]
[Black "Tang, Andrew"]
[WhiteFideId "1141724"]
[BlackFideId "2059630"]
[WhiteElo "2329"]
[BlackElo "2581"]
[Result "0-1"]
[Round "07"]
[TimeControl "180+1"]
[Date "2022.10.04"]
[WhiteClock "0:00:13"]
[BlackClock "0:00:29"]

1. e4 {[%clk 0:03:00]}  e5 {[%clk 0:02:58]} 2. Nf3 {[%clk 0:03:00]}  Nc6 {[%clk 0:02:48]} 3. Bb5 {[%clk 0:03:00]}  g6 {[%clk 0:02:48]} 4. h4 {[%clk 0:02:54]}  Nf6 {[%clk 0:02:44]} 5. Nc3 {[%clk 0:02:52]}  d6 {[%clk 0:02:37]} 6. d4 {[%clk 0:02:47]}  exd4 {[%clk 0:02:36]} 7. Nxd4 {[%clk 0:02:47]}  Bd7 {[%clk 0:02:37]} 8. Nxc6 {[%clk 0:02:39]}  bxc6 {[%clk 0:02:38]} 9. Be2 {[%clk 0:02:39]}  h6 {[%clk 0:02:17]} 10. Be3 {[%clk 0:02:38]}  Bg7 {[%clk 0:02:17]} 11. O-O {[%clk 0:02:03]}  O-O {[%clk 0:02:04]} 12. g3 {[%clk 0:01:53]}  Re8 {[%clk 0:01:37]} 13. Bf3 {[%clk 0:01:53]}  h5 {[%clk 0:01:29]} 14. Re1 {[%clk 0:01:47]}  Qb8 {[%clk 0:01:29]} 15. Rb1 {[%clk 0:01:42]}  Ng4 {[%clk 0:01:17]} 16. Bxg4 {[%clk 0:01:35]}  Bxg4 {[%clk 0:01:15]} 17. Qd2 {[%clk 0:01:34]}  Qb4 {[%clk 0:01:15]} 18. Bh6 {[%clk 0:01:05]}  Bh8 {[%clk 0:01:14]} 19. Qf4 {[%clk 0:00:58]}  Re6 {[%clk 0:01:03]} 20. a3 {[%clk 0:00:52]}  Qc4 {[%clk 0:00:56]} 21. Bg5 {[%clk 0:00:23]}  Rae8 {[%clk 0:00:50]} 22. f3 {[%clk 0:00:23]}  Be5 {[%clk 0:00:49]} 23. Qd2 {[%clk 0:00:19]}  Bxf3 {[%clk 0:00:44]} 24. Rf1 {[%clk 0:00:20]}  Bxe4 {[%clk 0:00:35]} 25. Nxe4 {[%clk 0:00:18]}  Qxe4 {[%clk 0:00:36]} 26. Kh2 {[%clk 0:00:17]}  Bxg3+ {[%clk 0:00:29]} 27. Kxg3 {[%clk 0:00:16]}  Qg4+ {[%clk 0:00:29]} 28. Kh2 {[%clk 0:00:13]}  Re2+ {[%clk 0:00:29]} 0-1


[Site "https://www.chess.com"]

[Event "Titled Tuesday Blitz October 04 Late 2022"]
[White "Nakamura, Hikaru"]
[Black "Vazquez, Guillermo"]
[WhiteFideId "2016192"]
[BlackFideId "3702308"]
[WhiteElo "2909"]
[BlackElo "2543"]
[Result "1-0"]
[Round "07"]
[TimeControl "180+1"]
[Date "2022.10.04"]
[WhiteClock "0:00:58"]
[BlackClock "0:00:07"]

1. Nf3 {[%clk 0:02:36]}  d5 {[%clk 0:02:57]} 2. g3 {[%clk 0:02:36]}  Nc6 {[%clk 0:02:56]} 3. d4 {[%clk 0:02:36]}  Bf5 {[%clk 0:02:56]} 4. a3 {[%clk 0:02:33]}  e6 {[%clk 0:02:56]} 5. Bg2 {[%clk 0:02:33]}  Be7 {[%clk 0:02:56]} 6. Nbd2 {[%clk 0:02:32]}  Nf6 {[%clk 0:02:52]} 7. b3 {[%clk 0:02:33]}  O-O {[%clk 0:02:52]} 8. Bb2 {[%clk 0:02:33]}  h6 {[%clk 0:02:47]} 9. c4 {[%clk 0:02:33]}  Ne4 {[%clk 0:02:40]} 10. O-O {[%clk 0:02:33]}  Bf6 {[%clk 0:02:39]} 11. e3 {[%clk 0:02:33]}  Re8 {[%clk 0:02:34]} 12. Rc1 {[%clk 0:02:33]}  a5 {[%clk 0:02:20]} 13. cxd5 {[%clk 0:02:33]}  exd5 {[%clk 0:02:19]} 14. Qe2 {[%clk 0:02:33]}  Nxd2 {[%clk 0:02:13]} 15. Qxd2 {[%clk 0:02:32]}  Be4 {[%clk 0:02:13]} 16. Qd1 {[%clk 0:02:29]}  Qd6 {[%clk 0:02:00]} 17. Bh3 {[%clk 0:02:27]}  Bh7 {[%clk 0:01:47]} 18. Ne1 {[%clk 0:02:23]}  Ne7 {[%clk 0:01:44]} 19. Nd3 {[%clk 0:02:22]}  c6 {[%clk 0:01:44]} 20. Nc5 {[%clk 0:02:19]}  Qc7 {[%clk 0:01:33]} 21. Nd7 {[%clk 0:02:13]}  Qd6 {[%clk 0:01:29]} 22. Nxf6+ {[%clk 0:02:09]}  Qxf6 {[%clk 0:01:30]} 23. a4 {[%clk 0:02:08]}  Nf5 {[%clk 0:01:22]} 24. Qf3 {[%clk 0:02:01]}  Qg5 {[%clk 0:01:16]} 25. Ba3 {[%clk 0:01:59]}  Nh4 {[%clk 0:01:09]} 26. Qg4 {[%clk 0:01:51]}  Bf5 {[%clk 0:01:04]} 27. Qxg5 {[%clk 0:01:47]}  hxg5 {[%clk 0:01:05]} 28. Bxf5 {[%clk 0:01:45]}  Nxf5 {[%clk 0:01:06]} 29. h3 {[%clk 0:01:46]}  f6 {[%clk 0:01:03]} 30. Kg2 {[%clk 0:01:45]}  Kf7 {[%clk 0:01:03]} 31. Rc3 {[%clk 0:01:46]}  Ke6 {[%clk 0:00:50]} 32. g4 {[%clk 0:01:44]}  Nd6 {[%clk 0:00:46]} 33. f3 {[%clk 0:01:43]}  Kd7 {[%clk 0:00:46]} 34. Rb1 {[%clk 0:01:39]}  Ra6 {[%clk 0:00:32]} 35. Bc1 {[%clk 0:01:39]}  b5 {[%clk 0:00:30]} 36. axb5 {[%clk 0:01:35]}  Nxb5 {[%clk 0:00:31]} 37. Rc2 {[%clk 0:01:34]}  a4 {[%clk 0:00:29]} 38. bxa4 {[%clk 0:01:29]}  Rxa4 {[%clk 0:00:30]} 39. Rcb2 {[%clk 0:01:23]}  Rc4 {[%clk 0:00:22]} 40. Bd2 {[%clk 0:01:22]}  Ra8 {[%clk 0:00:22]} 41. Rc1 {[%clk 0:01:18]}  Rxc1 {[%clk 0:00:21]} 42. Bxc1 {[%clk 0:01:19]}  Ra1 {[%clk 0:00:21]} 43. Bd2 {[%clk 0:01:19]}  Rd1 {[%clk 0:00:21]} 44. Bb4 {[%clk 0:01:18]}  g6 {[%clk 0:00:21]} 45. Ra2 {[%clk 0:01:16]}  Rb1 {[%clk 0:00:19]} 46. Bf8 {[%clk 0:01:15]}  Rb3 {[%clk 0:00:19]} 47. Kf2 {[%clk 0:01:13]}  Ke8 {[%clk 0:00:18]} 48. Ra8+ {[%clk 0:01:09]}  Kf7 {[%clk 0:00:19]} 49. Bc5 {[%clk 0:01:08]}  Rb2+ {[%clk 0:00:18]} 50. Kf1 {[%clk 0:01:09]}  Rb3 {[%clk 0:00:18]} 51. Ke2 {[%clk 0:01:08]}  Rb2+ {[%clk 0:00:14]} 52. Kd3 {[%clk 0:01:07]}  Rb3+ {[%clk 0:00:14]} 53. Kd2 {[%clk 0:01:08]}  Rb2+ {[%clk 0:00:15]} 54. Kc1 {[%clk 0:01:06]}  Rb3 {[%clk 0:00:15]} 55. Rf8+ {[%clk 0:01:01]}  Ke6 {[%clk 0:00:14]} 56. Re8+ {[%clk 0:01:02]}  Kf7 {[%clk 0:00:11]} 57. Re7+ {[%clk 0:01:02]}  Kg8 {[%clk 0:00:12]} 58. Kc2 {[%clk 0:01:01]}  Rc3+ {[%clk 0:00:10]} 59. Kd2 {[%clk 0:01:01]}  Rb3 {[%clk 0:00:11]} 60. Re6 {[%clk 0:00:57]}  Kf7 {[%clk 0:00:08]} 61. Rxc6 {[%clk 0:00:56]}  Rb2+ {[%clk 0:00:08]} 62. Kd3 {[%clk 0:00:57]}  Rb3+ {[%clk 0:00:08]} 63. Ke2 {[%clk 0:00:57]}  Nc3+ {[%clk 0:00:07]} 64. Kd2 {[%clk 0:00:58]} 1-0


[Site "https://www.chess.com"]

[Event "Titled Tuesday Blitz October 04 Late 2022"]
[White "Nasuta, Grzegorz"]
[Black "Andreikin, Dmitry"]
[WhiteFideId "1141686"]
[BlackFideId "4158814"]
[WhiteElo "2442"]
[BlackElo "2736"]
[Result "0-1"]
[Round "07"]
[TimeControl "180+1"]
[Date "2022.10.04"]
[WhiteClock "0:00:04"]
[BlackClock "0:02:11"]

1. e4 {[%clk 0:03:00]}  e6 {[%clk 0:03:00]} 2. d4 {[%clk 0:03:00]}  d5 {[%clk 0:03:00]} 3. Nc3 {[%clk 0:02:58]}  Bb4 {[%clk 0:03:00]} 4. exd5 {[%clk 0:02:55]}  exd5 {[%clk 0:03:00]} 5. Bd3 {[%clk 0:02:55]}  Nf6 {[%clk 0:02:57]} 6. Ne2 {[%clk 0:02:53]}  O-O {[%clk 0:02:57]} 7. O-O {[%clk 0:02:53]}  c6 {[%clk 0:02:57]} 8. Ng3 {[%clk 0:02:53]}  Re8 {[%clk 0:02:55]} 9. Nce2 {[%clk 0:02:53]}  Bg4 {[%clk 0:02:52]} 10. f3 {[%clk 0:02:49]}  Bh5 {[%clk 0:02:51]} 11. Nf4 {[%clk 0:02:45]}  Bg6 {[%clk 0:02:50]} 12. Nxg6 {[%clk 0:02:45]}  fxg6 {[%clk 0:02:48]} 13. c3 {[%clk 0:02:40]}  Bd6 {[%clk 0:02:47]} 14. f4 {[%clk 0:02:40]}  Nbd7 {[%clk 0:02:47]} 15. Qf3 {[%clk 0:02:35]}  c5 {[%clk 0:02:33]} 16. f5 {[%clk 0:02:32]}  cxd4 {[%clk 0:02:33]} 17. fxg6 {[%clk 0:02:29]}  Ne5 {[%clk 0:02:32]} 18. gxh7+ {[%clk 0:02:29]}  Kh8 {[%clk 0:02:32]} 19. Qd1 {[%clk 0:02:27]}  dxc3 {[%clk 0:02:27]} 20. bxc3 {[%clk 0:02:11]}  Qb6+ {[%clk 0:02:27]} 21. Kh1 {[%clk 0:02:12]}  Nfg4 {[%clk 0:02:27]} 22. Be2 {[%clk 0:00:56]}  Nf2+ {[%clk 0:02:24]} 23. Rxf2 {[%clk 0:00:55]}  Qxf2 {[%clk 0:02:25]} 24. Qxd5 {[%clk 0:00:29]}  Ng4 {[%clk 0:02:20]} 25. Bd2 {[%clk 0:00:07]}  Bxg3 {[%clk 0:02:19]} 26. Bxg4 {[%clk 0:00:07]}  Rad8 {[%clk 0:02:20]} 27. Bd7 {[%clk 0:00:06]}  Re2 {[%clk 0:02:12]} 28. hxg3 {[%clk 0:00:04]}  Rxd2 {[%clk 0:02:11]} 0-1


[Site "https://www.chess.com"]

[Event "Titled Tuesday Blitz October 04 Late 2022"]
[White "Pichot, Alan"]
[Black "Machidon, Cristi"]
[WhiteFideId "110973"]
[BlackFideId "13904590"]
[WhiteElo "2578"]
[BlackElo "2312"]
[Result "1-0"]
[Round "07"]
[TimeControl "180+1"]
[Date "2022.10.04"]
[WhiteClock "0:02:04"]
[BlackClock "0:01:43"]

1. Nf3 {[%clk 0:03:00]}  d5 {[%clk 0:02:59]} 2. e3 {[%clk 0:03:00]}  c6 {[%clk 0:03:00]} 3. c4 {[%clk 0:03:01]}  Nf6 {[%clk 0:03:00]} 4. b3 {[%clk 0:03:01]}  g6 {[%clk 0:03:00]} 5. Bb2 {[%clk 0:03:02]}  Bg7 {[%clk 0:03:01]} 6. Be2 {[%clk 0:03:02]}  O-O {[%clk 0:03:01]} 7. O-O {[%clk 0:03:03]}  a5 {[%clk 0:03:02]} 8. a3 {[%clk 0:03:01]}  Bg4 {[%clk 0:02:56]} 9. d4 {[%clk 0:03:00]}  Ne4 {[%clk 0:02:54]} 10. Nbd2 {[%clk 0:03:00]}  Nxd2 {[%clk 0:02:51]} 11. Qxd2 {[%clk 0:02:58]}  e6 {[%clk 0:02:39]} 12. h3 {[%clk 0:02:58]}  Bxf3 {[%clk 0:02:39]} 13. Bxf3 {[%clk 0:02:59]}  Qb6 {[%clk 0:02:34]} 14. Qc2 {[%clk 0:02:56]}  Nd7 {[%clk 0:02:29]} 15. c5 {[%clk 0:02:53]}  Qc7 {[%clk 0:02:26]} 16. Be2 {[%clk 0:02:53]}  e5 {[%clk 0:02:25]} 17. Bd3 {[%clk 0:02:50]}  exd4 {[%clk 0:02:24]} 18. exd4 {[%clk 0:02:50]}  Qf4 {[%clk 0:02:22]} 19. g3 {[%clk 0:02:43]}  Qc7 {[%clk 0:02:21]} 20. Rfe1 {[%clk 0:02:41]}  Rfe8 {[%clk 0:02:21]} 21. Kg2 {[%clk 0:02:41]}  Nf8 {[%clk 0:02:20]} 22. Bc3 {[%clk 0:02:37]}  Ne6 {[%clk 0:02:18]} 23. Qb2 {[%clk 0:02:37]}  Re7 {[%clk 0:02:15]} 24. Re2 {[%clk 0:02:33]}  Rae8 {[%clk 0:02:15]} 25. Rae1 {[%clk 0:02:32]}  h5 {[%clk 0:02:14]} 26. h4 {[%clk 0:02:27]}  b6 {[%clk 0:02:10]} 27. b4 {[%clk 0:02:24]}  Kf8 {[%clk 0:01:51]} 28. cxb6 {[%clk 0:02:12]}  Qxb6 {[%clk 0:01:52]} 29. bxa5 {[%clk 0:02:13]}  Qxb2 {[%clk 0:01:51]} 30. Bxb2 {[%clk 0:02:13]}  Bxd4 {[%clk 0:01:41]} 31. Bxd4 {[%clk 0:02:01]}  Nxd4 {[%clk 0:01:42]} 32. Rxe7 {[%clk 0:02:02]}  Rxe7 {[%clk 0:01:42]} 33. Rxe7 {[%clk 0:02:03]}  Kxe7 {[%clk 0:01:43]} 34. a6 {[%clk 0:02:04]} 1-0


[Site "https://www.chess.com"]

[Event "Titled Tuesday Blitz October 04 Late 2022"]
[White "Sarana, Alexey"]
[Black "Rasulov, Vugar"]
[WhiteFideId "24133795"]
[BlackFideId "13402390"]
[WhiteElo "2689"]
[BlackElo "2509"]
[Result "1-0"]
[Round "07"]
[TimeControl "180+1"]
[Date "2022.10.04"]
[WhiteClock "0:00:22"]
[BlackClock "0:00:14"]

1. d4 {[%clk 0:03:00]}  Nf6 {[%clk 0:03:00]} 2. c4 {[%clk 0:03:01]}  e6 {[%clk 0:03:00]} 3. Nc3 {[%clk 0:03:01]}  Bb4 {[%clk 0:02:59]} 4. e3 {[%clk 0:03:02]}  O-O {[%clk 0:02:59]} 5. Bd3 {[%clk 0:03:02]}  d5 {[%clk 0:02:59]} 6. a3 {[%clk 0:03:03]}  Bxc3+ {[%clk 0:02:59]} 7. bxc3 {[%clk 0:03:03]}  dxc4 {[%clk 0:02:59]} 8. Bxc4 {[%clk 0:03:04]}  c5 {[%clk 0:03:00]} 9. Ne2 {[%clk 0:03:05]}  Qc7 {[%clk 0:03:00]} 10. Bd3 {[%clk 0:03:06]}  e5 {[%clk 0:02:56]} 11. O-O {[%clk 0:03:04]}  Rd8 {[%clk 0:02:54]} 12. Ng3 {[%clk 0:03:02]}  b6 {[%clk 0:02:51]} 13. f4 {[%clk 0:02:41]}  exd4 {[%clk 0:02:48]} 14. cxd4 {[%clk 0:02:41]}  Nc6 {[%clk 0:02:46]} 15. Qc2 {[%clk 0:02:24]}  Be6 {[%clk 0:02:28]} 16. Bb2 {[%clk 0:02:06]}  Na5 {[%clk 0:02:06]} 17. e4 {[%clk 0:01:51]}  Bb3 {[%clk 0:02:01]} 18. Qc3 {[%clk 0:01:47]}  Rxd4 {[%clk 0:01:44]} 19. Rae1 {[%clk 0:01:47]}  Rad8 {[%clk 0:01:43]} 20. Bb1 {[%clk 0:01:47]}  Bc4 {[%clk 0:01:39]} 21. Rf2 {[%clk 0:01:35]}  Rd1 {[%clk 0:01:38]} 22. Bc2 {[%clk 0:01:29]}  Rxe1+ {[%clk 0:01:37]} 23. Qxe1 {[%clk 0:01:30]}  Qd7 {[%clk 0:01:21]} 24. Bc3 {[%clk 0:01:22]}  Nc6 {[%clk 0:01:14]} 25. Nf5 {[%clk 0:00:59]}  Nd4 {[%clk 0:01:06]} 26. Rd2 {[%clk 0:00:58]}  Nxc2 {[%clk 0:00:40]} 27. Qg3 {[%clk 0:00:37]}  Nh5 {[%clk 0:00:38]} 28. Rxd7 {[%clk 0:00:23]}  Rxd7 {[%clk 0:00:39]} 29. Qg4 {[%clk 0:00:23]}  f6 {[%clk 0:00:14]} 30. Nh6+ {[%clk 0:00:22]} 1-0


[Site "https://www.chess.com"]

[Event "Titled Tuesday Blitz October 04 Late 2022"]
[White "Sorokin, Aleksey"]
[Black "Tanenbaum, Zachary"]
[WhiteFideId "24176460"]
[BlackFideId "2060850"]
[WhiteElo "2476"]
[BlackElo "2175"]
[Result "1-0"]
[Round "07"]
[TimeControl "180+1"]
[Date "2022.10.04"]
[WhiteClock "0:00:54"]
[BlackClock "0:00:12"]

1. e4 {[%clk 0:03:00]}  e5 {[%clk 0:02:59]} 2. Nf3 {[%clk 0:03:00]}  Nc6 {[%clk 0:02:59]} 3. Bb5 {[%clk 0:03:00]}  a6 {[%clk 0:02:59]} 4. Ba4 {[%clk 0:03:00]}  d6 {[%clk 0:03:00]} 5. O-O {[%clk 0:02:59]}  Nf6 {[%clk 0:02:59]} 6. Re1 {[%clk 0:02:55]}  Be7 {[%clk 0:02:59]} 7. c3 {[%clk 0:02:55]}  O-O {[%clk 0:02:59]} 8. h3 {[%clk 0:02:56]}  b5 {[%clk 0:02:59]} 9. Bb3 {[%clk 0:02:53]}  Nb8 {[%clk 0:02:58]} 10. d4 {[%clk 0:02:52]}  Nbd7 {[%clk 0:02:58]} 11. Nbd2 {[%clk 0:02:53]}  Bb7 {[%clk 0:02:58]} 12. a3 {[%clk 0:02:53]}  h6 {[%clk 0:02:57]} 13. Bc2 {[%clk 0:02:46]}  Re8 {[%clk 0:02:57]} 14. b3 {[%clk 0:02:46]}  Bf8 {[%clk 0:02:57]} 15. Bb2 {[%clk 0:02:46]}  g6 {[%clk 0:02:54]} 16. d5 {[%clk 0:02:45]}  c6 {[%clk 0:02:53]} 17. c4 {[%clk 0:02:45]}  cxd5 {[%clk 0:02:49]} 18. cxd5 {[%clk 0:02:44]}  Rc8 {[%clk 0:02:49]} 19. b4 {[%clk 0:02:43]}  Qb6 {[%clk 0:02:33]} 20. Nb3 {[%clk 0:02:39]}  Nh5 {[%clk 0:02:31]} 21. Bc1 {[%clk 0:02:36]}  Nf4 {[%clk 0:02:22]} 22. Be3 {[%clk 0:02:35]}  Qd8 {[%clk 0:02:19]} 23. Qd2 {[%clk 0:02:31]}  Qf6 {[%clk 0:02:18]} 24. Bd1 {[%clk 0:02:27]}  Rc7 {[%clk 0:02:14]} 25. Rc1 {[%clk 0:02:25]}  Rxc1 {[%clk 0:02:11]} 26. Nxc1 {[%clk 0:02:25]}  Rc8 {[%clk 0:02:12]} 27. Nb3 {[%clk 0:02:25]}  Rc4 {[%clk 0:02:07]} 28. Na5 {[%clk 0:02:24]}  Rc7 {[%clk 0:02:06]} 29. Kh2 {[%clk 0:02:08]}  g5 {[%clk 0:01:39]} 30. Ng1 {[%clk 0:02:02]}  Qg6 {[%clk 0:01:17]} 31. g3 {[%clk 0:01:55]}  Nh5 {[%clk 0:01:15]} 32. Bg4 {[%clk 0:01:49]}  Ng7 {[%clk 0:01:12]} 33. Rc1 {[%clk 0:01:47]}  Rxc1 {[%clk 0:00:52]} 34. Qxc1 {[%clk 0:01:47]}  Nf6 {[%clk 0:00:47]} 35. Nxb7 {[%clk 0:01:32]}  Nxg4+ {[%clk 0:00:46]} 36. hxg4 {[%clk 0:01:32]}  Qxe4 {[%clk 0:00:47]} 37. Qd1 {[%clk 0:01:26]}  Ne8 {[%clk 0:00:41]} 38. Qf3 {[%clk 0:01:15]}  Qxf3 {[%clk 0:00:38]} 39. Nxf3 {[%clk 0:01:16]}  Nf6 {[%clk 0:00:38]} 40. Nd2 {[%clk 0:01:11]}  Nxg4+ {[%clk 0:00:36]} 41. Kg2 {[%clk 0:01:11]}  Nf6 {[%clk 0:00:36]} 42. Ba7 {[%clk 0:01:07]}  Nxd5 {[%clk 0:00:32]} 43. Bb8 {[%clk 0:01:06]}  f6 {[%clk 0:00:27]} 44. Bxd6 {[%clk 0:01:01]}  Bxd6 {[%clk 0:00:26]} 45. Nxd6 {[%clk 0:01:02]}  h5 {[%clk 0:00:25]} 46. N2e4 {[%clk 0:01:00]}  Kf8 {[%clk 0:00:20]} 47. Nc5 {[%clk 0:01:00]}  Ke7 {[%clk 0:00:19]} 48. Nf5+ {[%clk 0:01:00]}  Kf7 {[%clk 0:00:19]} 49. Nxa6 {[%clk 0:01:00]}  Kg6 {[%clk 0:00:19]} 50. Ne3 {[%clk 0:00:59]}  Nc3 {[%clk 0:00:19]} 51. Nc7 {[%clk 0:00:58]}  f5 {[%clk 0:00:19]} 52. Ned5 {[%clk 0:00:57]}  Na4 {[%clk 0:00:15]} 53. Nxb5 {[%clk 0:00:56]}  f4 {[%clk 0:00:15]} 54. Nbc3 {[%clk 0:00:56]}  Kf5 {[%clk 0:00:15]} 55. Nxa4 {[%clk 0:00:54]}  g4 {[%clk 0:00:13]} 56. Nac3 {[%clk 0:00:54]}  f3+ {[%clk 0:00:12]} 57. Kg1 {[%clk 0:00:54]} 1-0


[Site "https://www.chess.com"]